[Event "*** Titled Tuesday Blitz"]
[Site "Chess.com"]
[Date "2020.05.12"]
[Round "4"]
[White "abykhovsky"]
[Black "BocharovD"]
[Result "0-1"]
[WhiteElo "2678"]
[BlackElo "2864"]
[TimeControl "180+1"]
[EndTime "10:38:37 PDT"]
[Termination "BocharovD won by resignation"]

1. d4 {[%clk 0:03:00.9]} 1... Nf6 {[%clk 0:02:58.4]} 2. Nf3 {[%clk 0:03:01.1]}
2... e6 {[%clk 0:02:58.6]} 3. Bg5 {[%clk 0:02:58.3]} 3... h6 {[%clk 0:02:58.1]}
4. Bh4 {[%clk 0:02:58.1]} 4... d6 {[%clk 0:02:58.6]} 5. c4 {[%clk 0:02:56.9]}
5... g5 {[%clk 0:02:57.2]} 6. Bg3 {[%clk 0:02:56.8]} 6... Nh5 {[%clk 0:02:57.8]}
7. Nc3 {[%clk 0:02:56.9]} 7... Bg7 {[%clk 0:02:58]} 8. e3 {[%clk 0:02:57.4]}
8... O-O {[%clk 0:02:48.1]} 9. Nd2 {[%clk 0:02:47.5]} 9... Nxg3 {[%clk
0:02:47.2]} 10. hxg3 {[%clk 0:02:48.4]} 10... c5 {[%clk 0:02:47.1]} 11. d5
{[%clk 0:02:48.7]} 11... exd5 {[%clk 0:02:37.6]} 12. Nxd5 {[%clk 0:02:49.6]}
12... Be6 {[%clk 0:02:37.8]} 13. Bd3 {[%clk 0:02:14.1]} 13... Nc6 {[%clk
0:02:34.4]} 14. a3 {[%clk 0:01:58.7]} 14... b5 {[%clk 0:02:25.7]} 15. Qc2 {[%clk
0:01:44.7]} 15... bxc4 {[%clk 0:02:18.1]} 16. Bxc4 {[%clk 0:01:44.3]} 16... Ne5
{[%clk 0:02:17.6]} 17. Ba2 {[%clk 0:01:41.5]} 17... Rb8 {[%clk 0:02:17.1]} 18.
Rb1 {[%clk 0:01:33.2]} 18... c4 {[%clk 0:02:00.7]} 19. Bxc4 {[%clk 0:00:46.6]}
19... Nxc4 {[%clk 0:01:24.7]} 20. Qxc4 {[%clk 0:00:47.5]} 20... Qa5 {[%clk
0:01:14.8]} 21. Ne7+ {[%clk 0:00:42.9]} 21... Kh8 {[%clk 0:01:13.2]} 22. Ng6+
{[%clk 0:00:39.9]} 22... Kg8 {[%clk 0:01:07.1]} 23. Ne7+ {[%clk 0:00:39.8]}
23... Kh8 {[%clk 0:01:01.3]} 24. Ng6+ {[%clk 0:00:33.3]} 24... fxg6 {[%clk
0:00:40.5]} 25. Qxe6 {[%clk 0:00:32.6]} 25... Kh7 {[%clk 0:00:38.4]} 26. b4
{[%clk 0:00:20.3]} 26... Qxa3 {[%clk 0:00:21]} 27. O-O {[%clk 0:00:20.1]} 27...
Qd3 {[%clk 0:00:19.6]} 28. Nf3 {[%clk 0:00:19.8]} 28... Rbe8 {[%clk 0:00:19.6]}
29. Qd7 {[%clk 0:00:19.3]} 29... Qe4 {[%clk 0:00:18.5]} 30. Qxa7 {[%clk
0:00:18]} 30... g4 {[%clk 0:00:18.1]} 31. Nd2 {[%clk 0:00:17.3]} 31... Qd3
{[%clk 0:00:17.7]} 32. Qa2 {[%clk 0:00:17.5]} 32... Ra8 {[%clk 0:00:16.7]} 33.
Rb3 {[%clk 0:00:12.5]} 33... Qxf1+ {[%clk 0:00:16.1]} 0-1

[Event "*** Titled Tuesday Blitz"]
[Site "Chess.com"]
[Date "2020.05.12"]
[Round "4"]
[White "Mizner"]
[Black "giantslayer83"]
[Result "1-0"]
[WhiteElo "2510"]
[BlackElo "2699"]
[TimeControl "180+1"]
[EndTime "10:38:37 PDT"]
[Termination "Mizner won on time"]

1. d4 {[%clk 0:03:00.9]} 1... Nf6 {[%clk 0:02:59.6]} 2. c4 {[%clk 0:03:01.1]}
2... e6 {[%clk 0:02:59.5]} 3. Nc3 {[%clk 0:03:00.6]} 3... Bb4 {[%clk 0:02:58.9]}
4. Qc2 {[%clk 0:03:01]} 4... d5 {[%clk 0:02:58.1]} 5. cxd5 {[%clk 0:03:01.6]}
5... Qxd5 {[%clk 0:02:56.5]} 6. e3 {[%clk 0:03:00]} 6... O-O {[%clk 0:02:49.7]}
7. Bd2 {[%clk 0:02:52.4]} 7... Bxc3 {[%clk 0:02:35.7]} 8. bxc3 {[%clk
0:02:45.4]} 8... b6 {[%clk 0:02:18.4]} 9. Be2 {[%clk 0:02:09.4]} 9... Nc6 {[%clk
0:01:27.2]} 10. Bf3 {[%clk 0:02:00.7]} 10... Qc4 {[%clk 0:01:20.9]} 11. Qb3
{[%clk 0:01:48.1]} 11... Qxb3 {[%clk 0:01:14.3]} 12. axb3 {[%clk 0:01:49]} 12...
Bb7 {[%clk 0:01:14.7]} 13. b4 {[%clk 0:01:47.6]} 13... a5 {[%clk 0:01:12.3]} 14.
b5 {[%clk 0:01:35.2]} 14... Nd8 {[%clk 0:01:12]} 15. c4 {[%clk 0:01:21.4]} 15...
Be4 {[%clk 0:01:08.6]} 16. Bxe4 {[%clk 0:01:15.5]} 16... Nxe4 {[%clk 0:01:07.7]}
17. Nf3 {[%clk 0:01:11]} 17... Nb7 {[%clk 0:01:07.1]} 18. Ke2 {[%clk 0:01:09.8]}
18... f6 {[%clk 0:01:06.5]} 19. Rhc1 {[%clk 0:01:05.6]} 19... Nbd6 {[%clk
0:01:02.9]} 20. Be1 {[%clk 0:01:04.5]} 20... Rfc8 {[%clk 0:00:58]} 21. Rab1
{[%clk 0:00:56.8]} 21... c6 {[%clk 0:00:57.8]} 22. bxc6 {[%clk 0:00:38.2]} 22...
Rxc6 {[%clk 0:00:58.7]} 23. d5 {[%clk 0:00:38.6]} 23... Rxc4 {[%clk 0:00:30.3]}
24. dxe6 {[%clk 0:00:38.4]} 24... Rxc1 {[%clk 0:00:29.8]} 25. Rxc1 {[%clk
0:00:38]} 25... Rc8 {[%clk 0:00:29]} 26. Rxc8+ {[%clk 0:00:28.8]} 26... Nxc8
{[%clk 0:00:29.6]} 27. Nd4 {[%clk 0:00:29.4]} 27... Kf8 {[%clk 0:00:21.4]} 28.
f4 {[%clk 0:00:26.5]} 28... g6 {[%clk 0:00:19.9]} 29. g4 {[%clk 0:00:26.6]}
29... Ne7 {[%clk 0:00:04.6]} 30. Kd3 {[%clk 0:00:24.5]} 30... Nc5+ {[%clk
0:00:02]} 31. Kc4 {[%clk 0:00:24.8]} 31... Ke8 {[%clk 0:00:02.1]} 32. Kb5 {[%clk
0:00:23.2]} 32... Nd5 {[%clk 0:00:01.6]} 33. Bd2 {[%clk 0:00:23.6]} 1-0

[Event "*** Titled Tuesday Blitz"]
[Site "Chess.com"]
[Date "2020.05.12"]
[Round "4"]
[White "Mykola-Bortnyk"]
[Black "Artem_Sadovsky"]
[Result "1-0"]
[WhiteElo "2872"]
[BlackElo "2536"]
[TimeControl "180+1"]
[EndTime "10:38:39 PDT"]
[Termination "Mykola-Bortnyk won on time"]

1. e4 {[%clk 0:03:00.9]} 1... g6 {[%clk 0:02:59.8]} 2. Bc4 {[%clk 0:02:58.6]}
2... Bg7 {[%clk 0:03:00.4]} 3. Qf3 {[%clk 0:02:56.7]} 3... e6 {[%clk 0:02:55.4]}
4. c3 {[%clk 0:02:53.4]} 4... Ne7 {[%clk 0:02:54.3]} 5. d4 {[%clk 0:02:51.8]}
5... d5 {[%clk 0:02:54.6]} 6. Bd3 {[%clk 0:02:48]} 6... c5 {[%clk 0:02:43.9]} 7.
dxc5 {[%clk 0:02:43.9]} 7... Nbc6 {[%clk 0:02:40.1]} 8. Ne2 {[%clk 0:02:25.2]}
8... Ne5 {[%clk 0:02:36.8]} 9. Qg3 {[%clk 0:02:25]} 9... Nxd3+ {[%clk
0:02:18.6]} 10. Qxd3 {[%clk 0:02:25.9]} 10... dxe4 {[%clk 0:02:19.5]} 11. Qxe4
{[%clk 0:02:17.9]} 11... Qd5 {[%clk 0:02:09.8]} 12. Qxd5 {[%clk 0:02:13.1]}
12... Nxd5 {[%clk 0:02:10.7]} 13. Nd2 {[%clk 0:02:10.3]} 13... O-O {[%clk
0:02:00.3]} 14. Nb3 {[%clk 0:01:55.8]} 14... Bd7 {[%clk 0:01:48.2]} 15. a4
{[%clk 0:01:54.9]} 15... Rfc8 {[%clk 0:01:34.8]} 16. Nf4 {[%clk 0:01:49]} 16...
Nxf4 {[%clk 0:01:30.3]} 17. Bxf4 {[%clk 0:01:49.9]} 17... e5 {[%clk 0:01:31.2]}
18. Be3 {[%clk 0:01:48.7]} 18... Be6 {[%clk 0:01:31.6]} 19. Nd2 {[%clk
0:01:48.1]} 19... f5 {[%clk 0:01:28.4]} 20. g3 {[%clk 0:01:47.8]} 20... Bd5
{[%clk 0:01:09.2]} 21. O-O {[%clk 0:01:44.3]} 21... f4 {[%clk 0:00:59.8]} 22.
gxf4 {[%clk 0:01:42.9]} 22... exf4 {[%clk 0:01:00.7]} 23. Bxf4 {[%clk
0:01:39.4]} 23... Rxc5 {[%clk 0:01:01.1]} 24. Be3 {[%clk 0:01:37.6]} 24... Rc6
{[%clk 0:00:55.4]} 25. f4 {[%clk 0:01:34.9]} 25... Re6 {[%clk 0:00:53.1]} 26.
Rae1 {[%clk 0:01:32.1]} 26... Rae8 {[%clk 0:00:53.1]} 27. Bf2 {[%clk 0:01:31]}
27... a6 {[%clk 0:00:43.8]} 28. Rxe6 {[%clk 0:01:29.2]} 28... Rxe6 {[%clk
0:00:44.7]} 29. Re1 {[%clk 0:01:29.4]} 29... Rxe1+ {[%clk 0:00:45.1]} 30. Bxe1
{[%clk 0:01:30.3]} 30... Bh6 {[%clk 0:00:44.5]} 31. Bg3 {[%clk 0:01:29.1]} 31...
Kf7 {[%clk 0:00:44.6]} 32. Kf2 {[%clk 0:01:28.8]} 32... Ke6 {[%clk 0:00:44.7]}
33. Nf1 {[%clk 0:01:20]} 33... Bb3 {[%clk 0:00:35.8]} 34. a5 {[%clk 0:01:17.3]}
34... Kf5 {[%clk 0:00:32]} 35. Nd2 {[%clk 0:01:15]} 35... Bd5 {[%clk 0:00:29.7]}
36. c4 {[%clk 0:01:13.6]} 36... Bc6 {[%clk 0:00:27.2]} 37. Nb3 {[%clk
0:01:05.5]} 37... Bxf4 {[%clk 0:00:22.4]} 38. Nd4+ {[%clk 0:00:41.7]} 38... Ke4
{[%clk 0:00:22.6]} 39. Nxc6 {[%clk 0:00:42.1]} 39... Bxg3+ {[%clk 0:00:18.8]}
40. Kxg3 {[%clk 0:00:42.4]} 40... bxc6 {[%clk 0:00:19.7]} 41. b4 {[%clk
0:00:42.9]} 41... Ke5 {[%clk 0:00:10.6]} 42. b5 {[%clk 0:00:42.2]} 42... cxb5
{[%clk 0:00:09.2]} 43. cxb5 {[%clk 0:00:43.1]} 43... axb5 {[%clk 0:00:10.1]} 44.
a6 {[%clk 0:00:43.2]} 1-0

[Event "*** Titled Tuesday Blitz"]
[Site "Chess.com"]
[Date "2020.05.12"]
[Round "4"]
[White "Matalon"]
[Black "Chesswizard_2007"]
[Result "1/2-1/2"]
[WhiteElo "2355"]
[BlackElo "2581"]
[TimeControl "180+1"]
[EndTime "10:38:39 PDT"]
[Termination "Game drawn by repetition"]

1. e4 {[%clk 0:03:00.9]} 1... d6 {[%clk 0:02:56.6]} 2. d4 {[%clk 0:02:59.5]}
2... Nf6 {[%clk 0:02:57.5]} 3. Nc3 {[%clk 0:02:59.6]} 3... Nbd7 {[%clk
0:02:48.8]} 4. h3 {[%clk 0:02:55.3]} 4... e5 {[%clk 0:02:49.7]} 5. Nge2 {[%clk
0:02:55]} 5... h5 {[%clk 0:02:41.1]} 6. Be3 {[%clk 0:02:46.2]} 6... c6 {[%clk
0:02:35.7]} 7. a4 {[%clk 0:02:44.3]} 7... Qc7 {[%clk 0:02:34.8]} 8. Qd2 {[%clk
0:02:41.6]} 8... Be7 {[%clk 0:02:33.9]} 9. g3 {[%clk 0:02:27.4]} 9... b6 {[%clk
0:02:30.6]} 10. Bg2 {[%clk 0:02:25.5]} 10... Bb7 {[%clk 0:02:29.3]} 11. O-O
{[%clk 0:02:24.9]} 11... O-O {[%clk 0:02:27.1]} 12. f4 {[%clk 0:02:23.7]} 12...
exd4 {[%clk 0:02:15.8]} 13. Nxd4 {[%clk 0:02:21.2]} 13... d5 {[%clk 0:02:12.9]}
14. e5 {[%clk 0:02:19.8]} 14... Nh7 {[%clk 0:02:13]} 15. Nf5 {[%clk 0:02:06.4]}
15... Bc5 {[%clk 0:02:12.6]} 16. Bxc5 {[%clk 0:02:01.8]} 16... Nxc5 {[%clk
0:02:09.6]} 17. Rae1 {[%clk 0:02:00.2]} 17... Rad8 {[%clk 0:02:08.2]} 18. Qe2
{[%clk 0:01:57.9]} 18... Ba6 {[%clk 0:02:07.8]} 19. Qxh5 {[%clk 0:01:57]} 19...
Bxf1 {[%clk 0:02:06.9]} 20. Bxf1 {[%clk 0:01:48.6]} 20... g6 {[%clk 0:02:00.3]}
21. Nh6+ {[%clk 0:01:41.6]} 21... Kg7 {[%clk 0:01:58.5]} 22. Qh4 {[%clk
0:01:42.2]} 22... Rde8 {[%clk 0:01:29.3]} 23. g4 {[%clk 0:01:07.8]} 23... Qd8
{[%clk 0:01:25.7]} 24. g5 {[%clk 0:01:07.3]} 24... d4 {[%clk 0:01:21.1]} 25. Ng4
{[%clk 0:01:05]} 25... dxc3 {[%clk 0:01:02.4]} 26. Qh6+ {[%clk 0:00:37.1]} 26...
Kg8 {[%clk 0:01:02]} 27. Nf6+ {[%clk 0:00:28.1]} 27... Nxf6 {[%clk 0:01:02]} 28.
gxf6 {[%clk 0:00:28.2]} 28... Qd4+ {[%clk 0:00:58]} 29. Kh1 {[%clk 0:00:21.6]}
29... Ne6 {[%clk 0:00:56.2]} 30. f5 {[%clk 0:00:17.8]} 30... Qd2 {[%clk
0:00:50.3]} 31. Re3 {[%clk 0:00:16.3]} 31... Qf2 {[%clk 0:00:36.2]} 32. fxe6
{[%clk 0:00:14.2]} 32... Qxf1+ {[%clk 0:00:36.3]} 33. Kh2 {[%clk 0:00:13.7]}
33... Qf2+ {[%clk 0:00:05.9]} 34. Kh1 {[%clk 0:00:13.5]} 34... Qf1+ {[%clk
0:00:06.8]} 35. Kh2 {[%clk 0:00:13.6]} 35... Qf2+ {[%clk 0:00:07.7]} 36. Kh1
{[%clk 0:00:13.8]} 36... Qf1+ {[%clk 0:00:08.6]} 1/2-1/2

[Event "*** Titled Tuesday Blitz"]
[Site "Chess.com"]
[Date "2020.05.12"]
[Round "4"]
[White "Kostya26"]
[Black "Efremov_Vlad"]
[Result "1-0"]
[WhiteElo "2399"]
[BlackElo "2129"]
[TimeControl "180+1"]
[EndTime "10:38:42 PDT"]
[Termination "Kostya26 won by resignation"]

1. e4 {[%clk 0:03:00.9]} 1... c5 {[%clk 0:02:59]} 2. Nf3 {[%clk 0:03:00.6]} 2...
Nc6 {[%clk 0:02:56.8]} 3. Bb5 {[%clk 0:03:00.3]} 3... g6 {[%clk 0:02:56.4]} 4.
Bxc6 {[%clk 0:03:00]} 4... bxc6 {[%clk 0:02:56.2]} 5. O-O {[%clk 0:02:59.7]}
5... Bg7 {[%clk 0:02:56.5]} 6. Re1 {[%clk 0:02:59.6]} 6... Nh6 {[%clk
0:02:56.6]} 7. c3 {[%clk 0:02:57.8]} 7... O-O {[%clk 0:02:53.4]} 8. d4 {[%clk
0:02:57.8]} 8... cxd4 {[%clk 0:02:44.3]} 9. cxd4 {[%clk 0:02:58.7]} 9... d5
{[%clk 0:02:07.9]} 10. Nc3 {[%clk 0:02:59.6]} 10... dxe4 {[%clk 0:02:00.5]} 11.
Nxe4 {[%clk 0:02:57.7]} 11... Bg4 {[%clk 0:01:59.4]} 12. Bxh6 {[%clk 0:02:30.9]}
12... Bxh6 {[%clk 0:01:56.8]} 13. Nc3 {[%clk 0:02:30.8]} 13... Bg7 {[%clk
0:01:36.2]} 14. h3 {[%clk 0:01:52.7]} 14... Bxf3 {[%clk 0:01:26.5]} 15. Qxf3
{[%clk 0:01:50.9]} 15... Bxd4 {[%clk 0:01:25.7]} 16. Qxc6 {[%clk 0:01:49.1]}
16... Rc8 {[%clk 0:01:14]} 17. Qa4 {[%clk 0:01:22.7]} 17... Bxc3 {[%clk
0:00:58.3]} 18. bxc3 {[%clk 0:01:20.4]} 18... Rxc3 {[%clk 0:00:58.3]} 19. Qxa7
{[%clk 0:01:19.7]} 19... e6 {[%clk 0:00:57.2]} 20. a4 {[%clk 0:01:15.3]} 20...
Qa8 {[%clk 0:00:52]} 21. Qd4 {[%clk 0:01:11.4]} 21... Rfc8 {[%clk 0:00:46.8]}
22. a5 {[%clk 0:00:56.5]} 22... Qa6 {[%clk 0:00:45.7]} 23. Reb1 {[%clk
0:00:43.2]} 23... R3c4 {[%clk 0:00:32.3]} 24. Qf6 {[%clk 0:00:29.2]} 24... R4c6
{[%clk 0:00:21.3]} 25. h4 {[%clk 0:00:25]} 25... h5 {[%clk 0:00:20.7]} 26. g3
{[%clk 0:00:19]} 26... Ra8 {[%clk 0:00:20.6]} 27. Rb2 {[%clk 0:00:14]} 27... Rc5
{[%clk 0:00:19.6]} 28. Rab1 {[%clk 0:00:11.6]} 28... Qd6 {[%clk 0:00:11.3]} 29.
a6 {[%clk 0:00:09.2]} 29... Ra5 {[%clk 0:00:09.9]} 30. Rb6 {[%clk 0:00:06.3]}
30... Qc7 {[%clk 0:00:09]} 31. Rb7 {[%clk 0:00:06]} 31... Qd6 {[%clk 0:00:08.3]}
32. Qxf7+ {[%clk 0:00:05.6]} 1-0

[Event "*** Titled Tuesday Blitz"]
[Site "Chess.com"]
[Date "2020.05.12"]
[Round "4"]
[White "AthanasiusLefebvre"]
[Black "Batsai"]
[Result "0-1"]
[WhiteElo "2059"]
[BlackElo "2262"]
[TimeControl "180+1"]
[EndTime "10:38:42 PDT"]
[Termination "Batsai won by resignation"]

1. Nf3 {[%clk 0:03:00.9]} 1... Nf6 {[%clk 0:02:59.5]} 2. g3 {[%clk 0:03:01.3]}
2... e6 {[%clk 0:02:59.5]} 3. Bg2 {[%clk 0:03:00.7]} 3... d5 {[%clk 0:03:00.4]}
4. O-O {[%clk 0:03:00.8]} 4... Be7 {[%clk 0:02:59.8]} 5. c4 {[%clk 0:03:00.2]}
5... O-O {[%clk 0:03:00.3]} 6. d3 {[%clk 0:02:58.5]} 6... c6 {[%clk 0:02:57]} 7.
Nc3 {[%clk 0:02:58.3]} 7... Nbd7 {[%clk 0:02:56.2]} 8. Rb1 {[%clk 0:02:56.8]}
8... a5 {[%clk 0:02:54.9]} 9. a3 {[%clk 0:02:56]} 9... Re8 {[%clk 0:02:52.7]}
10. b4 {[%clk 0:02:55.8]} 10... axb4 {[%clk 0:02:51.1]} 11. axb4 {[%clk
0:02:55.8]} 11... h6 {[%clk 0:02:45.3]} 12. b5 {[%clk 0:02:55.8]} 12... c5
{[%clk 0:02:41.7]} 13. cxd5 {[%clk 0:02:49]} 13... exd5 {[%clk 0:02:41.5]} 14.
e4 {[%clk 0:02:48]} 14... d4 {[%clk 0:02:37.4]} 15. Na4 {[%clk 0:02:44.5]} 15...
Qa5 {[%clk 0:02:23.2]} 16. e5 {[%clk 0:01:47.7]} 16... Nd5 {[%clk 0:02:08.4]}
17. Nxd4 {[%clk 0:01:44.1]} 17... cxd4 {[%clk 0:02:07.4]} 18. Bxd5 {[%clk
0:01:41.3]} 18... Qxa4 {[%clk 0:02:07.7]} 19. Bb3 {[%clk 0:01:36.7]} 19... Qa5
{[%clk 0:02:03]} 20. e6 {[%clk 0:01:27.8]} 20... fxe6 {[%clk 0:02:02.5]} 21.
Bxe6+ {[%clk 0:01:26.2]} 21... Kh8 {[%clk 0:02:02.8]} 22. Bf7 {[%clk 0:00:46.5]}
22... Rf8 {[%clk 0:02:00.2]} 23. Bd5 {[%clk 0:00:24.2]} 23... Nf6 {[%clk
0:01:56]} 24. Bc4 {[%clk 0:00:23.8]} 24... Bg4 {[%clk 0:01:52.7]} 25. Qb3 {[%clk
0:00:20.2]} 25... Be2 {[%clk 0:01:44.8]} 26. Bf4 {[%clk 0:00:17.4]} 26... Bxf1
{[%clk 0:01:43.6]} 27. Rxf1 {[%clk 0:00:18.2]} 27... Qc3 {[%clk 0:01:41.7]} 28.
Qd1 {[%clk 0:00:16.4]} 28... Qb4 {[%clk 0:01:08.1]} 29. Be5 {[%clk 0:00:15.4]}
29... Qc5 {[%clk 0:01:04.3]} 30. Bxf6 {[%clk 0:00:14.6]} 30... Bxf6 {[%clk
0:01:01.9]} 31. Qf3 {[%clk 0:00:13.6]} 31... b6 {[%clk 0:00:50.4]} 32. Bd5
{[%clk 0:00:13.5]} 32... Rae8 {[%clk 0:00:43]} 33. Be4 {[%clk 0:00:13]} 33...
Bg5 {[%clk 0:00:36.5]} 34. Qh5 {[%clk 0:00:11.6]} 34... Rxe4 {[%clk 0:00:35.3]}
35. dxe4 {[%clk 0:00:11.6]} 35... d3 {[%clk 0:00:35.6]} 36. Qd1 {[%clk
0:00:10.5]} 36... d2 {[%clk 0:00:35.6]} 37. Kg2 {[%clk 0:00:08.2]} 37... Qd4
{[%clk 0:00:33.9]} 38. f3 {[%clk 0:00:07.8]} 38... Rc8 {[%clk 0:00:31.5]} 39.
Qe2 {[%clk 0:00:07.4]} 39... Rc1 {[%clk 0:00:30.8]} 40. f4 {[%clk 0:00:07.3]}
40... d1=Q {[%clk 0:00:29.6]} 0-1

[Event "*** Titled Tuesday Blitz"]
[Site "Chess.com"]
[Date "2020.05.12"]
[Round "4"]
[White "Vuk2000"]
[Black "GMSrinath"]
[Result "0-1"]
[WhiteElo "2627"]
[BlackElo "2823"]
[TimeControl "180+1"]
[EndTime "10:38:43 PDT"]
[Termination "GMSrinath won on time"]

1. d4 {[%clk 0:03:00.9]} 1... Nf6 {[%clk 0:02:58.7]} 2. Bg5 {[%clk 0:03:01.2]}
2... d5 {[%clk 0:02:53]} 3. Bxf6 {[%clk 0:02:54.1]} 3... gxf6 {[%clk 0:02:52.1]}
4. e3 {[%clk 0:02:53.7]} 4... c5 {[%clk 0:02:52.3]} 5. dxc5 {[%clk 0:02:54.6]}
5... Nc6 {[%clk 0:02:52.2]} 6. Nf3 {[%clk 0:02:51.1]} 6... e6 {[%clk 0:02:52.3]}
7. c4 {[%clk 0:02:50.3]} 7... dxc4 {[%clk 0:02:52.9]} 8. Nbd2 {[%clk 0:02:50.7]}
8... Bxc5 {[%clk 0:02:52.4]} 9. Bxc4 {[%clk 0:02:49.7]} 9... O-O {[%clk
0:02:48.8]} 10. O-O {[%clk 0:02:49.1]} 10... Bd7 {[%clk 0:02:49.3]} 11. Ne4
{[%clk 0:02:43]} 11... Be7 {[%clk 0:02:49.3]} 12. Qe2 {[%clk 0:02:36.7]} 12...
f5 {[%clk 0:02:49]} 13. Ng3 {[%clk 0:02:35.3]} 13... Bf6 {[%clk 0:02:45.9]} 14.
e4 {[%clk 0:02:19.9]} 14... fxe4 {[%clk 0:02:44.4]} 15. Nxe4 {[%clk 0:02:19.3]}
15... Bg7 {[%clk 0:02:44.1]} 16. Rfd1 {[%clk 0:02:18.2]} 16... Qe7 {[%clk
0:02:43.5]} 17. Neg5 {[%clk 0:01:53.5]} 17... Rfd8 {[%clk 0:02:36.1]} 18. Qe4
{[%clk 0:01:18.3]} 18... h6 {[%clk 0:02:34.1]} 19. Qh7+ {[%clk 0:01:17.9]} 19...
Kf8 {[%clk 0:02:34.1]} 20. Ne4 {[%clk 0:01:16.4]} 20... Be8 {[%clk 0:02:30.4]}
21. Nc3 {[%clk 0:00:55.6]} 21... Rxd1+ {[%clk 0:02:07.4]} 22. Rxd1 {[%clk
0:00:54.9]} 22... Rd8 {[%clk 0:02:08]} 23. Rxd8 {[%clk 0:00:45.6]} 23... Qxd8
{[%clk 0:02:08.9]} 24. Qd3 {[%clk 0:00:43.2]} 24... Qxd3 {[%clk 0:01:49.1]} 25.
Bxd3 {[%clk 0:00:44.1]} 25... Nb4 {[%clk 0:01:45.9]} 26. Bc4 {[%clk 0:00:39.9]}
26... Bc6 {[%clk 0:01:44.6]} 27. Kf1 {[%clk 0:00:33.7]} 27... Bxf3 {[%clk
0:01:24.6]} 28. gxf3 {[%clk 0:00:34.6]} 28... Bxc3 {[%clk 0:01:25.2]} 29. bxc3
{[%clk 0:00:34.5]} 29... Nc6 {[%clk 0:01:26.1]} 30. Ke2 {[%clk 0:00:27.2]} 30...
b6 {[%clk 0:01:25.7]} 31. Bb5 {[%clk 0:00:23.3]} 31... Na5 {[%clk 0:01:24.6]}
32. Ke3 {[%clk 0:00:20.5]} 32... Ke7 {[%clk 0:01:25.1]} 33. Kd4 {[%clk
0:00:18.8]} 33... Kd6 {[%clk 0:01:22.5]} 34. f4 {[%clk 0:00:19]} 34... f5 {[%clk
0:01:21.5]} 35. Bd3 {[%clk 0:00:07.5]} 35... Nc6+ {[%clk 0:01:20.8]} 36. Kc4
{[%clk 0:00:07.6]} 36... Ne7 {[%clk 0:01:20.6]} 37. Kb5 {[%clk 0:00:05.6]} 37...
Nd5 {[%clk 0:01:20.4]} 38. Ka6 {[%clk 0:00:05.2]} 38... Nxc3 {[%clk 0:01:18.9]}
39. a3 {[%clk 0:00:03.1]} 39... Kc7 {[%clk 0:01:13.8]} 40. Bc4 {[%clk
0:00:01.4]} 40... Nd5 {[%clk 0:01:13.1]} 41. Kxa7 {[%clk 0:00:01.8]} 41... Nxf4
{[%clk 0:01:13.2]} 42. Ka6 {[%clk 0:00:02.4]} 42... e5 {[%clk 0:01:13]} 43. a4
{[%clk 0:00:01.9]} 43... e4 {[%clk 0:01:04.9]} 44. Kb5 {[%clk 0:00:01.8]} 44...
Nh3 {[%clk 0:00:54.2]} 45. f3 {[%clk 0:00:01.8]} 45... e3 {[%clk 0:00:46]} 0-1

[Event "*** Titled Tuesday Blitz"]
[Site "Chess.com"]
[Date "2020.05.12"]
[Round "4"]
[White "WonderChampion"]
[Black "alexwinter25"]
[Result "1-0"]
[WhiteElo "1891"]
[BlackElo "2344"]
[TimeControl "180+1"]
[EndTime "10:38:43 PDT"]
[Termination "WonderChampion won by resignation"]

1. e4 {[%clk 0:03:00.9]} 1... e5 {[%clk 0:03:00.1]} 2. Nf3 {[%clk 0:02:59.9]}
2... Nc6 {[%clk 0:03:00.4]} 3. Bc4 {[%clk 0:02:58.7]} 3... Bc5 {[%clk
0:03:00.5]} 4. c3 {[%clk 0:02:58.5]} 4... Nf6 {[%clk 0:03:00.4]} 5. d3 {[%clk
0:02:58.9]} 5... O-O {[%clk 0:03:00.3]} 6. Nbd2 {[%clk 0:02:56.3]} 6... d5
{[%clk 0:03:00.3]} 7. exd5 {[%clk 0:02:55.4]} 7... Nxd5 {[%clk 0:03:01.2]} 8.
Ne4 {[%clk 0:02:53.2]} 8... Be7 {[%clk 0:02:56.3]} 9. O-O {[%clk 0:02:52]} 9...
Nb6 {[%clk 0:02:55.9]} 10. Bb3 {[%clk 0:02:51.3]} 10... Bg4 {[%clk 0:02:55.2]}
11. Bc2 {[%clk 0:02:47.4]} 11... Kh8 {[%clk 0:02:41.1]} 12. Be3 {[%clk
0:02:41.5]} 12... Nd5 {[%clk 0:02:38]} 13. Bd2 {[%clk 0:02:30.9]} 13... f5
{[%clk 0:02:36.9]} 14. Ng3 {[%clk 0:02:30.6]} 14... f4 {[%clk 0:02:15.7]} 15.
Ne4 {[%clk 0:02:29]} 15... g5 {[%clk 0:02:11.3]} 16. Kh1 {[%clk 0:01:58.6]}
16... Qe8 {[%clk 0:02:09]} 17. h3 {[%clk 0:01:47.3]} 17... Qh5 {[%clk
0:02:05.7]} 18. d4 {[%clk 0:01:14.5]} 18... exd4 {[%clk 0:01:53.9]} 19. cxd4
{[%clk 0:01:13.4]} 19... Nxd4 {[%clk 0:01:54.2]} 20. Bc3 {[%clk 0:01:04.2]}
20... Nxc3 {[%clk 0:01:18.6]} 21. Qxd4+ {[%clk 0:00:59.3]} 21... Kg8 {[%clk
0:01:07.2]} 22. Bb3+ {[%clk 0:00:55.2]} 22... Rf7 {[%clk 0:00:57.8]} 23. Qxc3
{[%clk 0:00:53.8]} 23... Bxf3 {[%clk 0:00:52.5]} 24. Qxf3 {[%clk 0:00:52]} 24...
Qg6 {[%clk 0:00:42]} 25. Bxf7+ {[%clk 0:00:50.2]} 25... Kxf7 {[%clk 0:00:42.4]}
26. Rad1 {[%clk 0:00:45.5]} 26... c6 {[%clk 0:00:40.9]} 27. Rd7 {[%clk
0:00:43.2]} 27... Rd8 {[%clk 0:00:34]} 28. Rfd1 {[%clk 0:00:39.7]} 28... Re8
{[%clk 0:00:27.4]} 29. Nd6+ {[%clk 0:00:32.9]} 29... Kf8 {[%clk 0:00:24.2]} 30.
Nxe8 {[%clk 0:00:32.2]} 30... Qxe8 {[%clk 0:00:25.1]} 31. Qe4 {[%clk 0:00:28.6]}
31... Bf6 {[%clk 0:00:20.3]} 32. Qxe8+ {[%clk 0:00:26]} 32... Kxe8 {[%clk
0:00:21.2]} 33. Rxb7 {[%clk 0:00:25.2]} 33... a5 {[%clk 0:00:20.2]} 34. Ra7
{[%clk 0:00:25]} 34... Bxb2 {[%clk 0:00:15.7]} 35. Rxa5 {[%clk 0:00:25.2]} 35...
Bc3 {[%clk 0:00:13.9]} 36. Ra7 {[%clk 0:00:24.6]} 36... c5 {[%clk 0:00:12.8]}
37. Rdd7 {[%clk 0:00:24.6]} 37... Bd4 {[%clk 0:00:11.9]} 38. Rxh7 {[%clk
0:00:23.2]} 38... Bg7 {[%clk 0:00:09.2]} 39. Rhxg7 {[%clk 0:00:22]} 1-0